Workbook

Sheet 計算結果
N1: 給付金額シミュレーション
B2: 年度 | K2: 2025-04-01 | N2: （yyyy/04/01）
B3: 生年月日 | K3: 1968-07-17 | N3: （yyyy/mm/dd） | S3: ="退職予定年月日時点で"&DATEDIF(K3,K7+1,"y")&"歳"&DATEDIF(K3,K7+1,"ym")&"ヶ月" -> 退職予定年月日時点で56歳10ヶ月
B4: 資格取得(入社)日 | K4: 1991-07-22 | N4: （yyyy/mm/dd）
B5: 仮想個人勘定残高（前年） | K5: 6143586 | N5: 円
B6: 仮想個人勘定残高（今年） | K6: 6401904 | N6: 円
B7: 退職予定年月日 | K7: 2025-06-01 | N7: （yyyy/mm/dd） | S7: =IF(INT(K7)>=INT(DATE(YEAR(K3)+65,MONTH(K3),DAY(K3))),"※65歳以上は算出できません","") -> 

Sheet 残高計算 (hidden)
A1: =YEAR(D2)-2018 -> 7
B2: 年度 | D2: =計算結果!K2 -> 2025-04-01 | E2: （yyyy/04/01） | F2: 累計開始時点満年齢＋端数月 | G2: =DATEDIF(D3,D2,"Y") -> 56 | H2: =MOD(DATEDIF(D3,D2,"M"),12) -> 8 | J2: 資格喪失日 | K2: =IF(DATE(YEAR(計算結果!$K$3)+65,MONTH(計算結果!$K$3),DAY(計算結果!$K$3)-1)=計算結果!$K$7,計算結果!$K$7,DATE(YEAR(計算結果!$K$7),MONTH(計算結果!$K$7),DAY(計算結果!$K$7)+1)) -> 2025-06-02
B3: 生年月日 | D3: =計算結果!K3 -> 1968-07-17 | E3: （yyyy/mm/dd） | F3: 加入者期間 | G3: =DATEDIF(D4,D2,"Y") -> 33 | J3: 年齢判定日 | K3: =DATE(YEAR(計算結果!$K$7),MONTH(計算結果!$K$7),DAY(計算結果!$K$7)+2) -> 2025-06-03
B4: 資格取得日 | D4: =DATE(YEAR(計算結果!K4),MONTH(計算結果!K4),1) -> 1991-07-01 | E4: （yyyy/mm/dd） | F4: 累積終了時点満年齢＋端数月 | G4: =DATEDIF(D3,D8,"Y") -> 56 | H4: =MOD(DATEDIF($D$3,$D$8,"M"),12) -> 10 | J4: 喪失日年齢 | K4: =DATEDIF(D3,K3,"y") -> 56
B5: =DATE(YEAR($D$2)-1,3,31) -> 2024-03-31 | D5: =計算結果!K5 -> 6143586 | E5: 円
B6: =DATE(YEAR($D$2),3,31) -> 2025-03-31 | D6: =計算結果!K6 -> 6401904 | E6: 円 | F6: 再評価率による付利 | G6: =QUOTIENT(60*12-G4*12-H4,12) -> 3 | H6: =MOD(60*12-G4*12-H4,12) -> 2
B7: 退職予定年齢（定年年齢） | D7: =IF(DATEDIF(D3,D8,"Y")>65,"65歳以上は算出出来ません",DATEDIF(D3,D8,"Y")) -> 56 | E7: 歳 | F7: 退職予定年齢
B8: 退職予定年月 | D8: =DATE(YEAR(K2),MONTH(K2),) -> 2025-05-31 | E8: (yyyy/mm)
G9: 再評価率 | H9: 0.015
B10: 年齢 | C10: 期間 | D10: 前年度残高の差額 | E10: 拠出額 | F10: 拠出累計 | G10: 利息相当額 | H10: 仮想個人勘定残高
B11: =IF(DATE(YEAR(D8),MONTH(D8),DAY(D8))<DATE(YEAR(D2)+1,MONTH(D2),DAY(D2)),DATEDIF(D3,D8,"y"),IF(DATEDIF($D$3,$D$2,"Y")>$D$7,"",IF(D7>65,"",DATEDIF($D$3,$D$2,"Y")))) -> 56 | C11: =IF(DATE(YEAR(D8),MONTH(D8),DAY(D8))<DATE(YEAR(D2)+1,MONTH(D2),DAY(D2)),DATEDIF(D4,DATE(YEAR(D8),MONTH(D8),DAY(D8)+1),"y"),DATEDIF($D$4,$D$2,"Y")) -> 33 | D11: =IF(C11="","",ROUND($D$6-$D$5*(1+$H$9),0)) -> 166164 | E11: =IF(B11="","",IF(B11=$D$7,0,IF(B11=($D$7-1),ROUND(D11*(12-(MOD(DATEDIF($D$3,$D$2,"M"),12)))/12,0),D11))) -> 0 | F11: =IF(B11="","",$D$6) -> 6401904 | G11: =IF(B11="","",ROUND(H11-F11,0)) -> 43600 | H11: =IF(DATE(YEAR(D8),MONTH(D8),DAY(D8))<DATE(YEAR(D2)+1,MONTH(D2),DAY(D2)),D6*(1+H9)^(DATEDIF(DATE(YEAR(D2),3,1),D8,"m")/12)+D11*DATEDIF(DATE(YEAR(D2),3,1),D8,"m")/12,$D$6) -> 6445503.638
B12: =IF(B11="","",IF(B11+1>$D$7,"",B11+1)) ->  | C12: =IF(B12="","",IF(B12=$D$7,DATEDIF($D$4,DATE(YEAR($D$8),MONTH($D$8),DAY($D$8)+1),"Y"),C11+1)) ->  | D12: =IF(C12="","",ROUND($D$6-$D$5*(1+$H$9),0)) ->  | E12: =IF(B12="","",IF(AND(B12=$D$7,$H$2>$H$4),ROUND(D12*(12-($H$2-$H$4))/12,0),IF(AND(B12=$D$7,$H$2<$H$4),ROUND(D12*(12+($H$4-$H$2))/12,0),D12))) ->  | F12: =IF(B12="","",IF(B13="",E12+F11,ROUND(F11+E11,0))) ->  | G12: =IF(B12="","",ROUND(H12-F12-SUM($G$11),0)) ->  | H12: =IF(B12="","", IF(AND(B12=$D$7,$H$2>$H$4), ROUND(H11+H11*($H$9)*((12-($H$2-$H$4))/12) +E12,0), IF(AND(B12=$D$7,$H$2<$H$4), ROUND(H11*(1+$H$9)+(H11*(1+$H$9)+E11)*($H$9)*(($H$4-$H$2)/12) +E12,0),ROUND(H11*(1+$H$9)+E12,0)))) -> 
B13: =IF(B12="","",IF(B12+1>$D$7,"",B12+1)) ->  | C13: =IF(B13="","",IF(B13=$D$7,DATEDIF($D$4,DATE(YEAR($D$8),MONTH($D$8),DAY($D$8)+1),"Y"),C12+1)) ->  | D13: =IF(C13="","",ROUND($D$6-$D$5*(1+$H$9),0)) ->  | E13: =IF(B13="","",IF(AND(B13=$D$7,$H$2>$H$4),ROUND(D13*(12-($H$2-$H$4))/12,0),IF(AND(B13=$D$7,$H$2<$H$4),ROUND(D13*(12+($H$4-$H$2))/12,0),D13))) ->  | F13: =IF(B13="","",IF(B14="",E13+F12,ROUND(F12+E12,0))) ->  | G13: =IF(B13="","",ROUND(H13-F13-SUM($G$11:G12),0)) -> 
G14: =IF(B14="","",ROUND(H14-F14-SUM($G$11:G13),0)) -> 
G15: =IF(B15="","",ROUND(H15-F15-SUM($G$11:G14),0)) -> 
G16: =IF(B16="","",ROUND(H16-F16-SUM($G$11:G15),0)) -> 
F17: =IF(B17="","",IF(B18="",E17+F16,ROUND(F16+E16,0))) ->  | G17: =IF(B17="","",ROUND(H17-F17-SUM($G$11:G16),0)) -> 
G18: =IF(B18="","",ROUND(H18-F18-SUM($G$11:G17),0)) -> 
G19: =IF(B19="","",ROUND(H19-F19-SUM($G$11:G18),0)) -> 
G20: =IF(B20="","",ROUND(H20-F20-SUM($G$11:G19),0)) -> 
C21: =IF(B21="","",IF(B21=$D$7,DATEDIF($D$4,$D$8,"Y"),C20+1)) ->  | G21: =IF(B21="","",ROUND(H21-F21-SUM($G$11:G20),0)) -> 
G22: =IF(B22="","",ROUND(H22-F22-SUM($G$11:G21),0)) -> 
G23: =IF(B23="","",ROUND(H23-F23-SUM($G$11:G22),0)) -> 
G24: =IF(B24="","",ROUND(H24-F24-SUM($G$11:G23),0)) ->  | H24: =IF(B24="","", IF(AND(B24=$D$7,$H$2>$H$4), ROUND(H23+H23*($H$9)*((12-($H$2-$H$4))/12) +E24,0), IF(AND(B24=$D$7,$H$2<$H$4), ROUND(H23*(1+$H$9)+(H23*(1+$H$9)+E23)*($H$9)*(($H$4-$H$2)/12) +E24,0),ROUND(H23*(1+$H$9)+E24,0)))) -> 
G25: =IF(B25="","",ROUND(H25-F25-SUM($G$11:G24),0)) ->  | H25: =IF(B25="","", IF(AND(B25=$D$7,$H$2>$H$4), ROUND(H24+H24*($H$9)*((12-($H$2-$H$4))/12) +E25,0), IF(AND(B25=$D$7,$H$2<$H$4), ROUND(H24*(1+$H$9)+(H24*(1+$H$9)+E24)*($H$9)*(($H$4-$H$2)/12) +E25,0),ROUND(H24*(1+$H$9)+E25,0)))) -> 
G26: =IF(B26="","",ROUND(H26-F26-SUM($G$11:G25),0)) -> 
G27: =IF(B27="","",ROUND(H27-F27-SUM($G$11:G26),0)) -> 
G28: =IF(B28="","",ROUND(H28-F28-SUM($G$11:G27),0)) -> 
G29: =IF(B29="","",ROUND(H29-F29-SUM($G$11:G28),0)) -> 
G30: =IF(B30="","",ROUND(H30-F30-SUM($G$11:G29),0)) -> 
G31: =IF(B31="","",ROUND(H31-F31-SUM($G$11:G30),0)) -> 
G32: =IF(B32="","",ROUND(H32-F32-SUM($G$11:G31),0)) -> 
G33: =IF(B33="","",ROUND(H33-F33-SUM($G$11:G32),0)) -> 
G34: =IF(B34="","",ROUND(H34-F34-SUM($G$11:G33),0)) -> 
G35: =IF(B35="","",ROUND(H35-F35-SUM($G$11:G34),0)) -> 
G36: =IF(B36="","",ROUND(H36-F36-SUM($G$11:G35),0)) -> 
G37: =IF(B37="","",ROUND(H37-F37-SUM($G$11:G36),0)) -> 
G38: =IF(B38="","",ROUND(H38-F38-SUM($G$11:G37),0)) -> 
G39: =IF(B39="","",ROUND(H39-F39-SUM($G$11:G38),0)) -> 
G40: =IF(B40="","",ROUND(H40-F40-SUM($G$11:G39),0)) -> 
G41: =IF(B41="","",ROUND(H41-F41-SUM($G$11:G40),0)) -> 
G42: =IF(B42="","",ROUND(H42-F42-SUM($G$11:G41),0)) -> 
G43: =IF(B43="","",ROUND(H43-F43-SUM($G$11:G42),0)) -> 
G44: =IF(B44="","",ROUND(H44-F44-SUM($G$11:G43),0)) -> 
G45: =IF(B45="","",ROUND(H45-F45-SUM($G$11:G44),0)) -> 
G46: =IF(B46="","",ROUND(H46-F46-SUM($G$11:G45),0)) -> 
G47: =IF(B47="","",ROUND(H47-F47-SUM($G$11:G46),0)) -> 
G48: =IF(B48="","",ROUND(H48-F48-SUM($G$11:G47),0)) -> 
G49: =IF(B49="","",ROUND(H49-F49-SUM($G$11:G48),0)) -> 
G50: =IF(B50="","",ROUND(H50-F50-SUM($G$11:G49),0)) -> 
G51: =IF(B51="","",ROUND(H51-F51-SUM($G$11:G50),0)) -> 
G52: =IF(B52="","",ROUND(H52-F52-SUM($G$11:G51),0)) -> 
G53: =IF(B53="","",ROUND(H53-F53-SUM($G$11:G52),0)) -> 
G54: =IF(B54="","",ROUND(H54-F54-SUM($G$11:G53),0)) -> 
G55: =IF(B55="","",ROUND(H55-F55-SUM($G$11:G54),0)) -> 
G56: =IF(B56="","",ROUND(H56-F56-SUM($G$11:G55),0)) -> 
G57: =IF(B57="","",ROUND(H57-F57-SUM($G$11:G56),0)) -> 
G58: =IF(B58="","",ROUND(H58-F58-SUM($G$11:G57),0)) -> 
G59: =IF(B59="","",ROUND(H59-F59-SUM($G$11:G58),0)) -> 
B60: =IF(B59="","",IF(B59+1>$D$7,"",B59+1)) ->  | D60: =IF(C60="","",ROUND($D$6-$D$5*(1+$H$9),0)) ->  | E60: =IF(B60="","",IF(B60=$D$7,0,IF(B60=($D$7-1),ROUND(D60*(12-(MOD(DATEDIF($D$3,$D$2,"M"),12)))/12,0),D60))) ->  | F60: =IF(B60="","",ROUND(F59+E59,0)) ->  | G60: =IF(B60="","",ROUND(H60-F60-SUM($G$11:G59),0)) -> 

Sheet 給付額計算 (hidden)
B1: 【加入者期間１０年未満の場合】 | AC1: （単位：円）
B2: 年金と一時金の選択割合 | J2: 年金 100％ | N2: 年金 | P2: 0.75 | R2: 年金 | T2: 0.5 | V2: 年金 | X2: 0.25 | Z2: 一時金 100％
N3: 一時金 | P3: 0.25 | R3: 一時金 | T3: 0.5 | V3: 一時金 | X3: 0.75
B4: 一時金額 | J4: ー | N4: ー | R4: ー | V4: ー | Z4: =IF(INT(計算結果!K7)>INT(DATE(YEAR(計算結果!K3)+65,MONTH(計算結果!K3),DAY(計算結果!K3))),"ー",IF(VLOOKUP(残高計算!D7,残高計算!$B$10:$H$60,2,FALSE)<10,ROUNDUP(VLOOKUP(残高計算!D7,残高計算!$B$10:$H$60,7,FALSE),-2),"ー")) -> ー
B5: 年金額 | C5: 受給期間 | D5: 20 | F5: 年間受取額 | J5: ー | N5: ー | R5: ー | V5: ー | Z5: ー
F6: （年金受取総額） | J6: ー | N6: ー | R6: ー | V6: ー | Z6: ー
D7: 15 | F7: 年間受取額 | J7: ー | N7: ー | R7: ー | V7: ー | Z7: ー
F8: （年金受取総額） | J8: ー | N8: ー | R8: ー | V8: ー | Z8: ー
D9: 10 | F9: 年間受取額 | J9: ー | N9: ー | R9: ー | V9: ー | Z9: ー
F10: （年金受取総額） | J10: ー | N10: ー | R10: ー | V10: ー | Z10: ー
D11: 5 | F11: 年間受取額 | J11: ー | N11: ー | R11: ー | V11: ー | Z11: ー
F12: （年金受取総額） | J12: ー | N12: ー | R12: ー | V12: ー | Z12: ー
B13: ※ 一定の前提条件による試算であり、給付額を保証するものではありません。
B15: 【加入者期間１０年以上 退職予定年齢が６０歳以上の場合】 | AC15: （単位：円）
B16: 年金と一時金の選択割合 | J16: 年金 100％ | N16: 年金 | P16: 0.75 | R16: 年金 | T16: 0.5 | V16: 年金 | X16: 0.25 | Z16: 一時金 100％
N17: 一時金 | P17: 0.25 | R17: 一時金 | T17: 0.5 | V17: 一時金 | X17: 0.75
B18: 一時金額 | J18: ー | N18: =IF($Z$18="ー","ー",ROUNDUP($J$19*P17*年金現価率!$C$7,-2)) -> ー | R18: =IF($Z$18="ー","ー",ROUNDUP($J$19*T17*年金現価率!$C$7,-2)) -> ー | V18: =IF($Z$18="ー","ー",ROUNDUP($J$19*X17*年金現価率!$C$7,-2)) -> ー | Z18: =IF(AND(AND(残高計算!G4=59,残高計算!H4=11),残高計算!K4=60),ROUNDUP(VLOOKUP(残高計算!D7,残高計算!$B$10:$H$60,7,FALSE)*1.00125,-2),IF(AND(AND(AND(残高計算!G4=59,残高計算!H4=10),残高計算!K4=60),DAY(計算結果!K3)=1),ROUNDUP(VLOOKUP(残高計算!D7,残高計算!$B$10:$H$60,7,FALSE)*1.0025,-2),IF(INT(計算結果!K7)>INT(DATE(YEAR(計算結果!K3)+65,MONTH(計算結果!K3),DAY(計算結果!K3))),"ー",IF(AND(VLOOKUP(残高計算!D7,残高計算!$B$10:$H$60,2,FALSE)>9,残高計算!K4>59)=TRUE,ROUNDUP(VLOOKUP(残高計算!D7,残高計算!$B$10:$H$60,7,FALSE),-2),"ー")))) -> ー
B19: 年金額 | C19: 受給期間 | D19: 20 | F19: 年間受取額 | J19: =IF($Z$18="ー","ー",ROUNDUP($Z$18/年金現価率!$C$7,-2)) -> ー | N19: =IF($Z$18="ー","ー",ROUNDUP($J$19*P16,-2)) -> ー | R19: =IF($Z$18="ー","ー",ROUNDUP($J$19*T16,-2)) -> ー | V19: =IF($Z$18="ー","ー",ROUNDUP($J$19*X16,-2)) -> ー | Z19: ー
F20: （年金受取総額） | J20: =IF($Z$18="ー","ー",J19*$D$19) -> ー | N20: =IF($Z$18="ー","ー",N19*$D$19) -> ー | R20: =IF($Z$18="ー","ー",R19*$D$19) -> ー | V20: =IF($Z$18="ー","ー",V19*$D$19) -> ー | Z20: ー
D21: 15 | F21: 年間受取額 | J21: =IF($Z$18="ー","ー",ROUNDUP($Z$18/年金現価率!$C$6,-2)) -> ー | N21: =IF($Z$18="ー","ー",ROUNDUP($J$21*P16,-2)) -> ー | R21: =IF($Z$18="ー","ー",ROUNDUP($J$21*T16,-2)) -> ー | V21: =IF($Z$18="ー","ー",ROUNDUP($J$21*X16,-2)) -> ー | Z21: ー
F22: （年金受取総額） | J22: =IF($Z$18="ー","ー",J21*$D$21) -> ー | N22: =IF($Z$18="ー","ー",N21*$D$21) -> ー | R22: =IF($Z$18="ー","ー",R21*$D$21) -> ー | V22: =IF($Z$18="ー","ー",V21*$D$21) -> ー | Z22: ー
D23: 10 | F23: 年間受取額 | J23: =IF($Z$18="ー","ー",ROUNDUP($Z$18/年金現価率!$C$5,-2)) -> ー | N23: =IF($Z$18="ー","ー",ROUNDUP($J$23*P16,-2)) -> ー | R23: =IF($Z$18="ー","ー",ROUNDUP($J$23*T16,-2)) -> ー | V23: =IF($Z$18="ー","ー",ROUNDUP($J$23*X16,-2)) -> ー | Z23: ー
F24: （年金受取総額） | J24: =IF($Z$18="ー","ー",J23*$D$23) -> ー | N24: =IF($Z$18="ー","ー",N23*$D$23) -> ー | R24: =IF($Z$18="ー","ー",R23*$D$23) -> ー | V24: =IF($Z$18="ー","ー",V23*$D$23) -> ー | Z24: ー
D25: 5 | F25: 年間受取額 | J25: =IF($Z$18="ー","ー",ROUNDUP($Z$18/年金現価率!$C$4,-2)) -> ー | N25: =IF($Z$18="ー","ー",ROUNDUP($J$25*P16,-2)) -> ー | R25: =IF($Z$18="ー","ー",ROUNDUP($J$25*T16,-2)) -> ー | V25: =IF($Z$18="ー","ー",ROUNDUP($J$25*X16,-2)) -> ー | Z25: ー
F26: （年金受取総額） | J26: =IF($Z$18="ー","ー",J25*$D$25) -> ー | N26: =IF($Z$18="ー","ー",N25*$D$25) -> ー | R26: =IF($Z$18="ー","ー",R25*$D$25) -> ー | V26: =IF($Z$18="ー","ー",V25*$D$25) -> ー | Z26: ー
B27: ※ 年金額は、退職時から給付する前提で計算しています。
B28: ※ 一定の前提条件による試算であり、給付額を保証するものではありません。
B32: 【加入者期間１０年以上 退職予定年齢が６０歳未満の場合（６０歳まで繰下げ ６０歳から年金受給）】 | AC32: （単位：円）
B33: 年金と一時金の選択割合 | J33: 年金 100％ | N33: 年金 | P33: 0.75 | R33: 年金 | T33: 0.5 | V33: 年金 | X33: 0.25 | Z33: 一時金 100％
N34: 一時金 | P34: 0.25 | R34: 一時金 | T34: 0.5 | V34: 一時金 | X34: 0.75
B35: 一時金額 | J35: ー | N35: =IF($Z$35="ー","ー",ROUNDUP($J$36*P34*年金現価率!$C$7,-2)) -> 1689300 | R35: =IF($Z$35="ー","ー",ROUNDUP($J$36*T34*年金現価率!$C$7,-2)) -> 3378600 | V35: =IF($Z$35="ー","ー",ROUNDUP($J$36*X34*年金現価率!$C$7,-2)) -> 5067900 | Z35: =IF(INT(計算結果!K7)>INT(DATE(YEAR(計算結果!K3)+65,MONTH(計算結果!K3),DAY(計算結果!K3))),"ー",IF(AND(残高計算!K4<60,VLOOKUP(残高計算!D7,残高計算!$B$10:$H$60,2,FALSE)>9)=TRUE,ROUNDUP(VLOOKUP(残高計算!D7,残高計算!B10:H60,7,FALSE)*INDEX(再評価率!C6:N38,残高計算!G6+1,残高計算!H6+1),-2),"ー")) -> 6756900
B36: 年金額 | C36: 受給期間 | D36: 20 | F36: 年間受取額 | J36: =IF($Z$35="ー","ー",ROUNDUP($Z$35/年金現価率!$C$7,-2)) -> 428100 | N36: =IF($Z$35="ー","ー",ROUNDUP($J$36*P33,-2)) -> 321100 | R36: =IF($Z$35="ー","ー",ROUNDUP($J$36*T33,-2)) -> 214100 | V36: =IF($Z$35="ー","ー",ROUNDUP($J$36*X33,-2)) -> 107100 | Z36: ー
F37: （年金受取総額） | J37: =IF($Z$35="ー","ー",J36*$D$19) -> 8562000 | N37: =IF($Z$35="ー","ー",N36*$D$19) -> 6422000 | R37: =IF($Z$35="ー","ー",R36*$D$19) -> 4282000 | V37: =IF($Z$35="ー","ー",V36*$D$19) -> 2142000 | Z37: ー
D38: 15 | F38: 年間受取額 | J38: =IF($Z$35="ー","ー",ROUNDUP($Z$35/年金現価率!$C$6,-2)) -> 539000 | N38: =IF($Z$35="ー","ー",ROUNDUP($J$38*P33,-2)) -> 404300 | R38: =IF($Z$35="ー","ー",ROUNDUP($J$38*T33,-2)) -> 269500 | V38: =IF($Z$35="ー","ー",ROUNDUP($J$38*X33,-2)) -> 134800 | Z38: ー
F39: （年金受取総額） | J39: =IF($Z$35="ー","ー",J38*$D$21) -> 8085000 | N39: =IF($Z$35="ー","ー",N38*$D$21) -> 6064500 | R39: =IF($Z$35="ー","ー",R38*$D$21) -> 4042500 | V39: =IF($Z$35="ー","ー",V38*$D$21) -> 2022000 | Z39: ー
D40: 10 | F40: 年間受取額 | J40: =IF($Z$35="ー","ー",ROUNDUP($Z$35/年金現価率!$C$5,-2)) -> 762600 | N40: =IF($Z$35="ー","ー",ROUNDUP($J$40*P33,-2)) -> 572000 | R40: =IF($Z$35="ー","ー",ROUNDUP($J$40*T33,-2)) -> 381300 | V40: =IF($Z$35="ー","ー",ROUNDUP($J$40*X33,-2)) -> 190700 | Z40: ー
F41: （年金受取総額） | J41: =IF($Z$35="ー","ー",J40*$D$23) -> 7626000 | N41: =IF($Z$35="ー","ー",N40*$D$23) -> 5720000 | R41: =IF($Z$35="ー","ー",R40*$D$23) -> 3813000 | V41: =IF($Z$35="ー","ー",V40*$D$23) -> 1907000 | Z41: ー
D42: 5 | F42: 年間受取額 | J42: =IF($Z$35="ー","ー",ROUNDUP($Z$35/年金現価率!$C$4,-2)) -> 1436500 | N42: =IF($Z$35="ー","ー",ROUNDUP($J$42*P33,-2)) -> 1077400 | R42: =IF($Z$35="ー","ー",ROUNDUP($J$42*T33,-2)) -> 718300 | V42: =IF($Z$35="ー","ー",ROUNDUP($J$42*X33,-2)) -> 359200 | Z42: ー
F43: （年金受取総額） | J43: =IF($Z$35="ー","ー",J42*$D$25) -> 7182500 | N43: =IF($Z$35="ー","ー",N42*$D$25) -> 5387000 | R43: =IF($Z$35="ー","ー",R42*$D$25) -> 3591500 | V43: =IF($Z$35="ー","ー",V42*$D$25) -> 1796000 | Z43: ー
B44: =残高計算!H9*100 -> 1.5
B45: ※ 一定の前提条件による試算であり、給付額を保証するものではありません。
B46: ※ 一時金額は60歳到達時点での金額です。

Sheet 再評価率 (hidden)
B2: 再評価率 | C2: =残高計算!H9 -> 0.015
B3: 桁数 | C3: 5
C5: 0 | D5: 1 | E5: 2 | F5: 3 | G5: 4 | H5: 5 | I5: 6 | J5: 7 | K5: 8 | L5: 9 | M5: 10 | N5: 11
B6: 0 | C6: 1 | D6: =$C6+ROUNDUP($C6*($C$2*D$5/12),$C$3) -> 1.00125 | E6: =$C6+ROUNDUP($C6*($C$2*E$5/12),$C$3) -> 1.0025 | F6: 1.00375 | G6: 1.005 | H6: 1.00625 | I6: 1.0075 | J6: 1.00875 | K6: 1.01 | L6: 1.01125 | M6: 1.0125 | N6: 1.01375
B7: 1 | C7: =ROUNDUP(C6*(1+$C$2),$C$3) -> 1.015 | D7: =$C7+ROUNDUP($C7*($C$2*D$5/12),$C$3) -> 1.01627 | E7: 1.01754 | F7: 1.01881 | G7: 1.02008 | H7: 1.02135 | I7: 1.02262 | J7: 1.02389 | K7: 1.02515 | L7: 1.02642 | M7: 1.02769 | N7: 1.02896
B8: 2 | C8: =ROUNDUP(C7*(1+$C$2),$C$3) -> 1.03023 | D8: 1.03152 | E8: 1.03281 | F8: 1.0341 | G8: 1.03539 | H8: 1.03667 | I8: 1.03796 | J8: 1.03925 | K8: 1.04054 | L8: 1.04183 | M8: 1.04311 | N8: 1.0444
B9: 3 | C9: 1.04569 | D9: 1.047 | E9: 1.04831 | F9: 1.04962 | G9: 1.05092 | H9: 1.05223 | I9: 1.05354 | J9: 1.05484 | K9: 1.05615 | L9: 1.05746 | M9: 1.05877 | N9: 1.06007
B10: 4 | C10: 1.06138 | D10: 1.06271 | E10: 1.06404 | F10: 1.06537 | G10: 1.06669 | H10: 1.06802 | I10: 1.06935 | J10: 1.07067 | K10: 1.072 | L10: 1.07333 | M10: 1.07465 | N10: 1.07598
B11: 5 | C11: 1.07731 | D11: 1.07866 | E11: 1.08001 | F11: 1.08135 | G11: 1.0827 | H11: 1.08405 | I11: 1.08539 | J11: 1.08674 | K11: 1.08809 | L11: 1.08943 | M11: 1.09078 | N11: 1.09213
B12: 6 | C12: 1.09347 | D12: 1.09484 | E12: 1.09621 | F12: 1.09758 | G12: 1.09894 | H12: 1.10031 | I12: 1.10168 | J12: 1.10304 | K12: 1.10441 | L12: 1.10578 | M12: 1.10714 | N12: 1.10851
B13: 7 | C13: 1.10988 | D13: 1.11127 | E13: 1.11266 | F13: 1.11405 | G13: 1.11543 | H13: 1.11682 | I13: 1.11821 | J13: 1.1196 | K13: 1.12098 | L13: 1.12237 | M13: 1.12376 | N13: 1.12515
B14: 8 | C14: 1.12653 | D14: 1.12794 | E14: 1.12935 | F14: 1.13076 | G14: 1.13217 | H14: 1.13358 | I14: 1.13498 | J14: 1.13639 | K14: 1.1378 | L14: 1.13921 | M14: 1.14062 | N14: 1.14202
B15: 9 | C15: 1.14343 | D15: 1.14486 | E15: 1.14629 | F15: 1.14772 | G15: 1.14915 | H15: 1.15058 | I15: 1.15201 | J15: 1.15344 | K15: 1.15487 | L15: 1.1563 | M15: 1.15773 | N15: 1.15916
B16: 10 | C16: 1.16059 | D16: 1.16205 | E16: 1.1635 | F16: 1.16495 | G16: 1.1664 | H16: 1.16785 | I16: 1.1693 | J16: 1.17075 | K16: 1.1722 | L16: 1.17365 | M16: 1.1751 | N16: 1.17655
B17: 11 | C17: 1.178 | D17: 1.17948 | E17: 1.18095 | F17: 1.18242 | G17: 1.18389 | H17: 1.18537 | I17: 1.18684 | J17: 1.18831 | K17: 1.18978 | L17: 1.19126 | M17: 1.19273 | N17: 1.1942
B18: 12 | C18: 1.19567 | D18: 1.19717 | E18: 1.19866 | F18: 1.20016 | G18: 1.20165 | H18: 1.20315 | I18: 1.20464 | J18: 1.20614 | K18: 1.20763 | L18: 1.20913 | M18: 1.21062 | N18: 1.21212
B19: 13 | C19: 1.21361 | D19: 1.21513 | E19: 1.21665 | F19: 1.21817 | G19: 1.21968 | H19: 1.2212 | I19: 1.22272 | J19: 1.22423 | K19: 1.22575 | L19: 1.22727 | M19: 1.22879 | N19: 1.2303
B20: 14 | C20: 1.23182 | D20: 1.23336 | E20: 1.2349 | F20: 1.23644 | G20: 1.23798 | H20: 1.23952 | I20: 1.24106 | J20: 1.2426 | K20: 1.24414 | L20: 1.24568 | M20: 1.24722 | N20: 1.24876
B21: 15 | C21: 1.2503 | D21: 1.25187 | E21: 1.25343 | F21: 1.25499 | G21: 1.25656 | H21: 1.25812 | I21: 1.25968 | J21: 1.26125 | K21: 1.26281 | L21: 1.26437 | M21: 1.26593 | N21: 1.2675
B22: 16 | C22: 1.26906 | D22: 1.27065 | E22: 1.27224 | F22: 1.27382 | G22: 1.27541 | H22: 1.277 | I22: 1.27858 | J22: 1.28017 | K22: 1.28176 | L22: 1.28334 | M22: 1.28493 | N22: 1.28651
B23: 17 | C23: 1.2881 | D23: 1.28972 | E23: 1.29133 | F23: 1.29294 | G23: 1.29455 | H23: 1.29616 | I23: 1.29777 | J23: 1.29938 | K23: 1.30099 | L23: 1.3026 | M23: 1.30421 | N23: 1.30582
B24: 18 | C24: 1.30743 | D24: 1.30907 | E24: 1.3107 | F24: 1.31234 | G24: 1.31397 | H24: 1.31561 | I24: 1.31724 | J24: 1.31888 | K24: 1.32051 | L24: 1.32214 | M24: 1.32378 | N24: 1.32541
B25: 19 | C25: 1.32705 | D25: 1.32871 | E25: 1.33037 | F25: 1.33203 | G25: 1.33369 | H25: 1.33535 | I25: 1.33701 | J25: 1.33867 | K25: 1.34033 | L25: 1.34198 | M25: 1.34364 | N25: 1.3453
B26: 20 | C26: 1.34696 | D26: 1.34865 | E26: 1.35033 | F26: 1.35202 | G26: 1.3537 | H26: 1.35538 | I26: 1.35707 | J26: 1.35875 | K26: 1.36043 | L26: 1.36212 | M26: 1.3638 | N26: 1.36549
B27: 21 | C27: 1.36717 | D27: 1.36888 | E27: 1.37059 | F27: 1.3723 | G27: 1.37401 | H27: 1.37572 | I27: 1.37743 | J27: 1.37914 | K27: 1.38085 | L27: 1.38256 | M27: 1.38426 | N27: 1.38597
B28: 22 | C28: 1.38768 | D28: 1.38942 | E28: 1.39115 | F28: 1.39289 | G28: 1.39462 | H28: 1.39636 | I28: 1.39809 | J28: 1.39983 | K28: 1.40156 | L28: 1.4033 | M28: 1.40503 | N28: 1.40677
B29: 23 | C29: 1.4085 | D29: 1.41027 | E29: 1.41203 | F29: 1.41379 | G29: 1.41555 | H29: 1.41731 | I29: 1.41907 | J29: 1.42083 | K29: 1.42259 | L29: 1.42435 | M29: 1.42611 | N29: 1.42787
B30: 24 | C30: 1.42963 | D30: 1.43142 | E30: 1.43321 | F30: 1.435 | G30: 1.43678 | H30: 1.43857 | I30: 1.44036 | J30: 1.44214 | K30: 1.44393 | L30: 1.44572 | M30: 1.44751 | N30: 1.44929
B31: 25 | C31: 1.45108 | D31: 1.4529 | E31: 1.45471 | F31: 1.45653 | G31: 1.45834 | H31: 1.46015 | I31: 1.46197 | J31: 1.46378 | K31: 1.4656 | L31: 1.46741 | M31: 1.46922 | N31: 1.47104
B32: 26 | C32: 1.47285 | D32: 1.4747 | E32: 1.47654 | F32: 1.47838 | G32: 1.48022 | H32: 1.48206 | I32: 1.4839 | J32: 1.48574 | K32: 1.48758 | L32: 1.48942 | M32: 1.49127 | N32: 1.49311
B33: 27 | C33: 1.49495 | D33: 1.49682 | E33: 1.49869 | F33: 1.50056 | G33: 1.50243 | H33: 1.5043 | I33: 1.50617 | J33: 1.50804 | K33: 1.5099 | L33: 1.51177 | M33: 1.51364 | N33: 1.51551
B34: 28 | C34: 1.51738 | D34: 1.51928 | E34: 1.52118 | F34: 1.52308 | G34: 1.52497 | H34: 1.52687 | I34: 1.52877 | J34: 1.53066 | K34: 1.53256 | L34: 1.53446 | M34: 1.53635 | N34: 1.53825
B35: 29 | C35: 1.54015 | D35: 1.54208 | E35: 1.54401 | F35: 1.54593 | G35: 1.54786 | H35: 1.54978 | I35: 1.55171 | J35: 1.55363 | K35: 1.55556 | L35: 1.55748 | M35: 1.55941 | N35: 1.56133
B36: 30 | C36: 1.56326 | D36: 1.56522 | E36: 1.56717 | F36: 1.56913 | G36: 1.57108 | H36: 1.57304 | I36: 1.57499 | J36: 1.57694 | K36: 1.5789 | L36: 1.58085 | M36: 1.58281 | N36: 1.58476
B37: 31 | C37: 1.58671 | D37: 1.5887 | E37: 1.59068 | F37: 1.59267 | G37: 1.59465 | H37: 1.59663 | I37: 1.59862 | J37: 1.6006 | K37: 1.60258 | L37: 1.60457 | M37: 1.60655 | N37: 1.60853
B38: 32 | C38: 1.61052 | D38: 1.61254 | E38: 1.61455 | F38: 1.61656 | G38: 1.61858 | H38: 1.62059 | I38: 1.6226 | J38: 1.62462 | K38: 1.62663 | L38: 1.62864 | M38: 1.63066 | N38: 1.63267

Sheet 年金現価率 (hidden)
B3: 年金現価率
B4: 5 | C4: 4.704
B5: 10 | C5: 8.861
B6: 15 | C6: 12.536
B7: 20 | C7: 15.784
